bitfinex/quotes_SOLUSD_20260310
["timestamp","ask_amount","ask_price","bid_price","bid_amount"]
[1773165157638,11.35615162,88.058,88.033,2.00141115]
[1773165158027,1.94109727,88.077,88.05,3.96082153]
[1773165158534,9.37091244,88.105,88.032,39.75826971]
[1773165158535,1.94109727,88.112,88.071,2.00141115]
[1773165158748,1.94109727,88.109,88.07,3.96082153]
[1773165159350,1.94109727,88.109,88.08,3.96082153]
[1773165159644,7.04692773,88.111,88.091,2.00141115]
[1773165160750,11.34944955,88.11,88.091,2.00141115]
[1773165162734,1.94109727,88.109,88.09,10.60087226]
[1773165163034,1.94109727,88.099,88.08,10.60087226]
[1773165163940,11.34944955,88.11,88.09,10.60087226]
[1773165164153,7.04692773,88.111,88.09,10.60087226]
[1773165164837,7.04692773,88.111,88.091,2.00141115]
[1773165166041,7.04692773,88.111,88.093,2.00141115]
[1773165167158,2.06881936,88.109,88.077,1.9491243]
[1773165167460,7.04692773,88.111,88.09,10.60087226]
[1773165167639,7.04692773,88.111,88.1,10.60087226]
[1773165168242,7.04692773,88.111,88.091,1.9491243]
[1773165169259,11.34683411,88.131,88.101,1.89790232]
[1773165169455,13.34161677,88.131,88.101,1.89790232]
[1773165169644,1.99478266,88.13,88.101,1.89790232]
[1773165170855,11.34700268,88.129,88.102,11.35048012]
[1773165171859,1.99478266,88.128,88.102,11.35048012]
[1773165172058,1.99478266,88.128,88.09,21.94960244]
[1773165172267,1.99478266,88.128,88.064,1.13553779]
[1773165172268,1.99478266,88.119,88.084,11.35267669]
[1773165172444,1.99478266,88.119,88.09,10.59765469]
[1773165172841,1.99478266,88.109,88.074,11.35397899]
[1773165173261,1.99478266,88.109,88.08,10.59765469]
[1773165173467,39.71946707,88.118,88.061,1.89790232]
[1773165173468,1.99478266,88.097,88.061,1.89790232]
[1773165173652,39.71946707,88.118,88.048,11.35744139]
[1773165173653,1.99478266,88.106,88.071,1.89790232]
[1773165174539,11.35009363,88.105,88.073,1.89790232]
[1773165174756,1.99478266,88.104,88.073,1.89790232]
[1773165175755,10.59765469,88.1,88.073,1.89790232]
[1773165176565,11.35035129,88.103,88.074,11.3540886]
[1773165176766,13.34513395,88.103,88.074,11.3540886]
[1773165177466,11.34914173,88.113,88.081,1.89790232]
[1773165177967,1.99478266,88.112,88.081,1.89790232]
[1773165178750,1.99478266,88.11,88.082,11.35305737]
[1773165179269,1.99478266,88.109,88.082,11.35305737]
[1773165180266,1.99478266,88.109,88.073,11.35413042]
[1773165180471,1.99478266,88.109,88.074,1.89790232]
[1773165181065,1.99478266,88.109,88.081,1.89790232]
[1773165181778,1.99478266,88.107,88.081,1.89790232]
[1773165183499,11.34996481,88.106,88.081,13.25096555]
[1773165183674,3.95910449,88.1,88.06,3.95910449]
[1773165183854,1.99478266,88.099,88.064,1.89790232]
[1773165184370,1.99478266,88.099,88.07,3.95910449]
[1773165184562,11.34996481,88.106,88.071,1.89790232]
[1773165184779,1.99478266,88.105,88.071,1.89790232]
[1773165185777,1.99478266,88.099,88.071,1.89790232]
[1773165185973,11.35022246,88.104,88.041,1.13583444]
[1773165185974,1.99478266,88.079,88.041,1.89790232]
[1773165186176,1.99478266,88.098,88.061,1.89790232]
[1773165186365,39.72577862,88.104,88.071,1.89790232]
[1773165186878,11.35022246,88.104,88.071,1.89790232]
[1773165187062,11.35022246,88.104,88.08,3.95910449]
[1773165187261,11.35022246,88.104,88.081,1.89790232]
[1773165187783,13.34381612,88.114,88.083,1.89790232]
[1773165188479,1.99478266,88.109,88.078,1.89790232]
[1773165189055,1.99478266,88.099,88.062,1.89790232]
[1773165189777,1.99478266,88.089,88.062,13.25349258]
[1773165190073,39.72848418,88.098,88.062,13.25349258]
[1773165190074,11.35099548,88.098,88.071,1.89790232]
[1773165190657,1.99478266,88.097,88.071,1.89790232]
[1773165191368,1.99478266,88.097,88.064,1.89790232]
[1773165191965,56.74467167,88.114,88.026,1.13602799]
[1773165191966,1.99478266,88.089,88.047,1.89790232]
[1773165192166,1.99478266,88.089,88.048,1.89790232]
[1773165192474,1.99478266,88.089,88.051,1.89790232]
[1773165193486,39.72938611,88.096,88.051,1.89790232]
[1773165193665,13.34600194,88.097,88.061,1.89790232]
[1773165193987,1.99478266,88.104,88.061,1.89790232]
[1773165194284,11.35035129,88.103,88.063,1.89790232]
[1773165194981,11.34986228,88.107,88.081,1.89790232]
[1773165195184,1.99478266,88.106,88.081,1.89790232]
[1773165195365,1.99478266,88.106,88.071,1.89790232]
[1773165195762,1.99478266,88.106,88.081,1.89790232]
[1773165196274,1.99478266,88.104,88.072,1.89790232]
[1773165197264,1.99478266,88.104,88.071,11.35447536]
[1773165197265,13.34286347,88.121,88.091,1.89790232]
[1773165199262,13.34286347,88.121,88.093,2.06912915]
[1773165200482,13.34286347,88.121,88.095,2.06912915]
[1773165200876,2.04782633,88.137,88.101,2.06912915]
[1773165201181,11.34705551,88.129,88.101,2.06912915]
[1773165202082,1.65252467,88.123,88.1,3.95910449]
[1773165202380,1.65252467,88.123,88.094,39.73028809]
[1773165202381,1.65252467,88.123,88.112,11.34919193]
[1773165202678,1.65252467,88.123,88.113,2.06912915]
[1773165203683,2.04782633,88.146,88.113,2.06912915]
[1773165203885,2.04782633,88.146,88.12,6.02823364]
[1773165204091,1.54200005,88.176,88.12,6.02823364]
[1773165204092,11.34411517,88.152,88.121,2.06912915]
[1773165204266,11.34442818,88.149,88.121,2.06912915]
[1773165204472,11.34468558,88.147,88.121,2.06912915]
[1773165204776,13.39251191,88.147,88.122,11.34790404]
[1773165205177,13.39251191,88.147,88.122,13.41703319]
[1773165205376,2.04782633,88.146,88.122,13.41703319]
[1773165207487,0.1,88.15,88.125,2.06912915]
[1773165207696,0.1,88.16,88.141,2.06912915]
[1773165208785,0.1,88.16,88.142,2.06912915]
[1773165208986,2.04782633,88.159,88.12,3.95910449]
[1773165209187,2.04782633,88.159,88.121,2.06912915]
[1773165209775,2.04782633,88.159,88.115,39.72081937]
[1773165209776,2.04782633,88.159,88.115,11.34880553]
[1773165209986,2.04782633,88.129,88.104,13.41935161]
[1773165210289,4.05910449,88.16,88.105,2.06912915]
[1773165210487,2.04782633,88.152,88.121,2.06912915]
[1773165211194,13.39096769,88.159,88.131,2.06912915]
[1773165212293,11.34314136,88.159,88.131,2.06912915]
[1773165212876,2.04782633,88.158,88.122,11.34790404]
[1773165213200,11.3433987,88.157,88.126,2.06912915]
[1773165213382,11.3433987,88.157,88.131,2.06912915]
[1773165213978,0.1,88.16,88.131,2.06912915]
[1773165214190,2.04782633,88.158,88.126,2.06912915]
[1773165214384,0.1,88.16,88.131,2.06912915]
[1773165214786,11.34314136,88.159,88.131,2.06912915]
[1773165214995,13.39096769,88.159,88.131,2.06912915]
[1773165215188,13.39096769,88.159,88.132,11.34661643]
[1773165215497,13.39096769,88.159,88.133,2.06912915]
[1773165216009,2.04782633,88.158,88.114,2.06912915]
[1773165216305,2.04782633,88.158,87.447,220.4244652]
[1773165216306,2.04782633,88.158,88.131,2.06912915]
[1773165216485,11.34314136,88.159,88.131,2.06912915]
[1773165216799,11.34314136,88.159,88.141,2.06912915]
[1773165217295,0.1,88.16,88.141,2.06912915]
[1773165217800,2.04782633,88.159,88.125,2.06912915]
[1773165218187,2.04782633,88.159,88.13,3.95910449]
[1773165218391,2.04782633,88.159,88.13,6.02823364]
[1773165219098,2.04782633,88.139,88.101,2.06912915]
[1773165219297,2.04782633,88.129,88.096,2.06912915]
[1773165219499,3.95910449,88.13,88.049,10.92723698]
[1773165219500,3.95910449,88.13,88.098,2.06912915]
[1773165219679,2.04782633,88.137,88.101,2.06912915]
[1773165219884,2.04782633,88.129,88.101,2.06912915]
[1773165220693,2.04782633,88.137,88.101,2.06912915]
[1773165220891,2.04782633,88.154,88.131,2.06912915]
[1773165221192,11.34314136,88.159,88.131,2.06912915]
[1773165221598,11.34314136,88.159,88.141,2.06912915]
[1773165222290,11.34314136,88.159,88.131,2.06912915]
[1773165223189,2.04782633,88.158,88.131,2.06912915]
[1773165223389,11.34314136,88.159,88.131,2.06912915]
[1773165225204,2.04782633,88.149,88.111,2.06912915]
[1773165225405,2.04782633,88.149,88.112,2.06912915]
[1773165225590,2.04782633,88.149,88.111,11.34931657]
[1773165225591,2.04782633,88.149,88.121,2.06912915]
[1773165226209,2.04782633,88.157,88.123,2.06912915]
[1773165226414,11.34314136,88.159,88.131,2.06912915]
[1773165226910,11.34314136,88.159,88.141,2.06912915]
[1773165227806,11.34314136,88.159,88.123,1.9966378]
[1773165228011,1.91697528,88.158,88.123,1.9966378]
[1773165228199,1.91697528,88.158,88.131,1.9966378]
[1773165228601,11.3433987,88.157,88.131,1.9966378]
[1773165228915,1.91697528,88.149,88.113,1.9966378]
[1773165229407,1.91697528,88.149,88.12,1.93325668]
[1773165229594,1.91697528,88.149,88.111,1.93325668]
[1773165230190,1.87776171,88.156,88.111,1.93325668]
[1773165230413,1.87776171,88.156,88.121,1.93325668]
[1773165230807,1.87776171,88.154,88.121,1.93325668]
[1773165231004,28.35230807,88.177,88.142,1.93325668]
[1773165231212,1.87776171,88.199,88.17,3.95910449]
[1773165231404,1.87776171,88.199,88.171,1.83325668]
[1773165231707,0.1,88.2,88.19,3.95910449]
[1773165231891,11.33671167,88.209,88.19,3.95910449]
[1773165232090,0.1,88.21,88.2,3.95910449]
[1773165232295,11.33476343,88.225,88.2,3.95910449]
[1773165232509,11.33355388,88.234,88.21,3.95910449]
[1773165232710,11.33466139,88.225,88.201,11.33773993]
[1773165233215,32.29102057,88.24,88.201,11.33773993]
[1773165233216,11.33454517,88.226,88.201,11.33773993]
[1773165233409,11.33454517,88.226,88.202,1.93325668]
[1773165234010,11.3351078,88.222,88.202,1.93325668]
[1773165234811,1.7133763,88.219,88.21,3.94746668]
[1773165235193,11.33402188,88.23,88.21,3.94746668]
[1773165235394,1.87776171,88.229,88.19,3.94746668]
[1773165235618,1.87776171,88.227,88.19,3.94746668]
[1773165235913,1.87776171,88.225,88.19,3.94746668]
[1773165236115,1.87776171,88.223,88.19,3.94746668]
[1773165237002,1.87776171,88.221,88.2,3.94746668]
[1773165237202,11.33504114,88.222,88.21,3.94746668]
[1773165237507,1.87776171,88.238,88.21,5.88072336]
[1773165237710,1.87776171,88.238,88.22,3.94746668]
[1773165238102,11.33260049,88.241,88.22,3.94746668]
[1773165239418,11.3320868,88.245,88.22,3.94746668]
[1773165239621,1.87776171,88.244,88.22,3.94746668]
[1773165240322,1.87776171,88.244,88.211,1.93325668]
[1773165240520,1.87776171,88.229,88.2,3.94746668]
[1773165241202,11.33427029,88.228,88.2,3.94746668]
[1773165241514,13.212032,88.228,88.2,3.94746668]
[1773165241824,0.1,88.25,88.176,1.13409544]
[1773165241825,1.87776171,88.248,88.211,1.93325668]
[1773165242113,1.87776171,88.246,88.211,1.93325668]
[1773165242315,1.87776171,88.239,88.21,3.94746668]
[1773165242498,1.87776171,88.239,88.197,11.33823447]
[1773165242702,1.87776171,88.239,88.21,3.94746668]
[1773165242918,1.87776171,88.239,88.22,3.94746668]
[1773165243308,11.33298578,88.238,88.22,3.94746668]
[1773165244202,11.33195838,88.246,88.22,3.94746668]
[1773165244401,1.87776171,88.245,88.211,1.93325668]
[1773165244617,4.04746668,88.25,88.176,1.13409544]
[1773165244618,11.33167931,88.249,88.23,3.94746668]
[1773165245816,1.87776171,88.248,88.204,1.93325668]
[1773165246120,1.87776171,88.248,88.188,11.33941125]
[1773165246121,3.94746668,88.22,88.19,5.88072336]
[1773165246424,1.87776171,88.209,88.18,3.94746668]
[1773165247605,3.94746668,88.23,88.191,1.93325668]
[1773165247810,1.87776171,88.228,88.191,1.93325668]
[1773165248011,1.87776171,88.226,88.191,1.93325668]
[1773165248827,1.87776171,88.224,88.191,1.93325668]
[1773165249607,11.3346557,88.225,88.171,1.13415975]
[1773165249608,1.87776171,88.219,88.182,13.2733647]
[1773165249807,1.87776171,88.209,88.18,3.94746668]
[1773165250613,1.87776171,88.209,88.19,3.94746668]
[1773165251231,11.33684019,88.208,88.183,1.93325668]
[1773165251529,1.87776171,88.207,88.18,3.94746668]
[1773165251710,1.87776171,88.207,88.181,11.3403114]
[1773165252810,1.87776171,88.207,88.141,1.13454578]
[1773165252811,1.87776171,88.199,88.17,3.94746668]
[1773165253011,1.87776171,88.217,88.18,3.94746668]
[1773165253425,1.87776171,88.216,88.181,1.93325668]
[1773165254131,39.67489258,88.217,88.18,3.94746668]
[1773165254132,1.87776171,88.209,88.18,3.94746668]
[1773165254431,1.87776171,88.209,88.171,11.34159757]
[1773165254730,1.87776171,88.209,88.18,3.94746668]
[1773165254926,11.33684019,88.208,88.18,3.94746668]
[1773165255132,1.87776171,88.207,88.18,3.94746668]
[1773165255330,1.87776171,88.207,88.175,11.34099273]
[1773165255833,1.87776171,88.207,88.18,3.94746668]
[1773165256030,1.87776171,88.199,88.161,1.93325668]
[1773165256237,1.87776171,88.199,88.17,3.94746668]
[1773165256415,1.87776171,88.199,88.164,11.34242484]
[1773165256614,1.87776171,88.199,88.17,3.94746668]
[1773165258209,3.94746668,88.21,88.154,1.93325668]
[1773165258210,1.87776171,88.197,88.154,1.93325668]
[1773165258411,1.87776171,88.179,88.14,15.29303961]
[1773165258631,1.87776171,88.179,88.141,11.34545784]
[1773165259134,1.87776171,88.197,88.16,3.94746668]
[1773165259337,1.87776171,88.197,88.16,5.85928197]
[1773165260216,1.92660566,88.189,88.15,3.94746668]
[1773165260623,1.92660566,88.189,88.16,3.94746668]
[1773165260823,1.92660566,88.189,88.161,1.91181529]
[1773165261431,39.68433942,88.196,88.17,3.94746668]
[1773165261619,11.33838269,88.196,88.171,1.91181529]
[1773165263936,1.92660566,88.196,88.17,15.28908848]
[1773165264130,1.92660566,88.204,88.171,1.91181529]
[1773165265052,11.33671167,88.209,88.181,1.91181529]
[1773165266028,1.92660566,88.208,88.181,1.91181529]
[1773165266223,1.92660566,88.208,88.18,3.94746668]
[1773165266855,1.92660566,88.208,88.181,11.3403114]
[1773165267660,11.3354266,88.219,88.2,3.94746668]
[1773165267858,11.3354266,88.219,88.198,1.91181529]
[1773165267859,13.26203226,88.219,88.19,5.85928197]
[1773165268150,13.26203226,88.219,88.191,11.33902552]
[1773165268636,7.52247347,88.218,88.185,11.33974483]
[1773165268831,7.52231664,88.217,88.185,11.33974483]
[1773165269034,1.92660566,88.215,88.19,3.94746668]
[1773165269931,11.3360691,88.214,88.19,15.2866068]
[1773165270454,1.92660566,88.213,88.19,15.2866068]
[1773165270627,1.92660566,88.224,88.191,1.91181529]
[1773165270826,9.45431571,88.223,88.2,3.94746668]
[1773165271043,1.92660566,88.223,88.2,5.85928197]
[1773165271237,7.53157919,88.222,88.2,5.85928197]
[1773165271439,11.33414183,88.229,88.201,1.91181529]
[1773165271639,1.92660566,88.227,88.201,1.91181529]
[1773165271839,7.53157156,88.226,88.201,1.91181529]
[1773165272055,7.53157156,88.225,88.202,11.33761139]
[1773165272231,7.53157156,88.224,88.202,11.33761139]
[1773165272430,7.53157156,88.223,88.202,11.33761139]
[1773165272735,1.92660566,88.225,88.202,11.33761139]
[1773165272736,7.53157156,88.222,88.202,11.33761139]
[1773165272939,7.53157156,88.221,88.202,11.33761139]
[1773165273140,1.92660566,88.225,88.202,11.33761139]
[1773165273435,18.86303324,88.224,88.202,11.33761139]
[1773165273649,7.52824906,88.223,88.202,11.33761139]
[1773165274737,7.52824906,88.222,88.202,13.24942668]
[1773165274942,7.52824906,88.221,88.202,13.24942668]
[1773165275136,7.52824906,88.22,88.202,13.24942668]
[1773165275340,1.92660566,88.246,88.211,1.91181529]
[1773165275537,1.92660566,88.244,88.203,1.91181529]
[1773165275736,1.92660566,88.241,88.211,1.91181529]
[1773165275952,1.92660566,88.241,88.21,3.94746668]
[1773165276253,1.92660566,88.229,88.187,1.91181529]
[1773165276451,1.92660566,88.229,88.136,45.38393733]
[1773165276452,1.92660566,88.219,88.19,3.94746668]
[1773165276839,3.94746668,88.21,88.17,3.94746668]
[1773165277030,1.92660566,88.209,88.17,3.94746668]
[1773165277230,1.92660566,88.207,88.17,15.28907574]
[1773165277639,1.92660566,88.207,88.17,17.20089103]
[1773165278640,1.92660566,88.207,88.18,3.94746668]
[1773165279247,11.33709724,88.206,88.181,11.3403114]
[1773165279560,1.92660566,88.216,88.182,1.91181529]
[1773165279767,1.92660566,88.199,88.17,3.94746668]
[1773165279939,1.92660566,88.199,88.17,5.85928197]
[1773165280741,1.92660566,88.199,88.171,1.91181529]
[1773165281253,1.92660566,88.189,88.149,1.91181529]
[1773165281456,1.92660566,88.189,88.151,1.91181529]
[1773165281638,1.92660566,88.189,88.15,5.08189662]
[1773165281639,1.92660566,88.189,88.152,3.0462195]
[1773165281958,1.92660566,88.189,88.153,1.91181529]
[1773165282156,1.92660566,88.189,88.16,3.94746668]
[1773165282356,1.92660566,88.179,88.15,3.94746668]
[1773165282859,1.92660566,88.179,88.15,5.85928197]
[1773165283241,1.92660566,88.179,88.151,13.25598608]
[1773165283742,1.92660566,88.177,88.143,1.91181529]
[1773165283968,1.92660566,88.177,88.144,11.3450717]
[1773165284260,1.92660566,88.177,88.14,3.94746668]
[1773165284672,1.92660566,88.177,88.141,1.91181529]
[1773165286160,1.92660566,88.266,88.171,1.91181529]
[1773165286361,1.92660566,88.247,88.21,3.94746668]
[1773165286553,1.92660566,88.239,88.19,3.94746668]
[1773165286756,1.92660566,88.229,88.19,3.94746668]
[1773165286956,1.92660566,88.229,88.2,3.94746668]
[1773165288761,2.01708329,88.227,88.2,3.94746668]
[1773165288955,2.01708329,88.248,88.21,3.94746668]
[1773165289355,2.03172933,88.239,88.21,3.94746668]
[1773165290670,2.03172933,88.239,88.201,11.33773993]
[1773165291669,2.03172933,88.237,88.21,3.94746668]
[1773165291865,2.03172933,88.237,88.21,5.92008502]
[1773165292051,2.03172933,88.237,88.21,3.94746668]
[1773165293763,11.33324266,88.236,88.21,3.94734344]
[1773165294072,2.03172933,88.24,88.211,1.97261834]
[1773165294466,2.03172933,88.24,88.21,3.94734344]
[1773165295172,2.03172933,88.239,88.203,13.31010119]
[1773165296179,2.03172933,88.237,88.203,13.31010119]
[1773165296371,2.03172933,88.237,88.21,3.94734344]
[1773165296570,2.03172933,88.229,88.176,1.97261834]
[1773165296763,2.03172933,88.237,88.2,3.94734344]
[1773165297680,2.03172933,88.237,88.2,5.91996178]
[1773165297882,2.03172933,88.235,88.202,13.31022973]
[1773165299363,2.03172933,88.235,88.203,1.97261834]
[1773165300262,2.03172933,88.233,88.203,1.97261834]
[1773165300478,2.03172933,88.233,88.202,11.33761139]
[1773165300895,2.03172933,88.233,88.2,3.94734344]
[1773165301196,2.03172933,88.209,88.171,1.97261834]
[1773165301494,2.03172933,88.199,88.16,3.94734344]
[1773165302697,2.03172933,88.197,88.161,11.34288404]
[1773165303196,2.03172933,88.189,88.16,3.94734344]
[1773165304677,11.33812558,88.198,88.171,1.97261834]
[1773165305065,2.03172933,88.197,88.162,39.69964383]
[1773165305384,2.03172933,88.197,88.163,1.97261834]
[1773165305568,2.03172933,88.197,88.17,3.94734344]
[1773165306579,2.03172933,88.197,88.171,13.31421591]
[1773165308181,11.33838269,88.196,88.171,13.31421591]
[1773165308381,11.33838269,88.196,88.172,1.97261834]
[1773165308768,2.03172933,88.2,88.173,11.34134031]
[1773165309184,2.03172933,88.199,88.161,11.34287241]
[1773165309888,2.03172933,88.179,88.142,1.97261834]
[1773165310182,2.03172933,88.179,88.14,15.29285013]
[1773165310766,2.03172933,88.177,88.14,15.29285013]
[1773165311266,2.03172933,88.177,88.141,1.97261834]
[1773165311963,2.03172933,88.177,88.14,15.29285013]
[1773165313082,2.03172933,88.159,88.118,51.02]
[1773165313882,2.03172933,88.159,88.13,3.94734344]
[1773165314081,2.03172933,88.17,88.141,1.97261834]
[1773165314986,11.34185484,88.169,88.142,11.34532912]
[1773165315170,2.03172933,88.159,88.128,1.97261834]
[1773165315369,2.03172933,88.159,88.12,5.91996178]
[1773165315571,2.03172933,88.159,88.12,3.94734344]
[1773165315775,2.03172933,88.149,88.11,3.94734344]
[1773165315975,2.03172933,88.139,88.102,1.97261834]
[1773165316886,2.03172933,88.139,88.106,11.34994293]
[1773165317085,2.03172933,88.137,88.106,11.34994293]
[1773165317387,2.03172933,88.119,88.09,0.2]
[1773165318067,2.03172933,88.119,88.09,15.49925157]
[1773165318870,2.03172933,88.109,88.09,0.2]
[1773165319078,2.03172933,88.107,88.09,0.2]
[1773165319672,11.34970717,88.108,88.09,0.2]
[1773165319882,2.04782328,88.112,88.09,11.55192742]
[1773165320083,2.04782328,88.112,88.09,0.2]
[1773165320990,11.34932074,88.111,88.09,0.2]
[1773165321196,2.04782328,88.109,88.09,0.2]
[1773165322798,2.04782328,88.099,88.06,11.35588338]
[1773165323002,2.04782328,88.089,88.06,11.35588338]
[1773165323299,3.94734344,88.09,88.06,11.35588338]
[1773165323300,2.04782328,88.087,88.06,11.35588338]
[1773165324096,2.04782328,88.087,88.06,15.30322682]
[1773165324290,11.35228407,88.088,88.05,0.2]
[1773165324291,2.04782328,88.085,88.052,1.91572877]
[1773165324681,2.04782328,88.079,88.051,11.35705443]
[1773165325273,2.04782328,88.079,88.05,0.2]
[1773165325496,2.04782328,88.069,88.05,0.2]
[1773165326171,3.69383402,88.098,88.034,11.35913521]
[1773165326172,2.04782328,88.059,88.034,11.35913521]
[1773165326686,2.04782328,88.059,88.02,5.86307221]
[1773165326878,2.04782328,88.049,88.025,11.36028564]
[1773165327090,2.04782328,88.049,88.01,3.94734344]
[1773165327293,2.04782328,88.049,88.011,1.91572877]
[1773165327794,2.04782328,88.039,88.001,39.77215528]
[1773165327996,2.04782328,88.039,88.003,1.91572877]
[1773165328298,2.04782328,88.065,88.02,10.62064818]
[1773165328498,10.62064818,88.05,88.02,10.62064818]
[1773165328681,2.04782328,88.049,88.02,10.62064818]
[1773165329607,3.69383402,88.074,87.99,1.33649278]
[1773165329608,10.62064818,88.03,87.994,1.91572877]
[1773165329778,2.04782328,88.029,87.994,1.91572877]
[1773165330179,2.04782328,88.037,88.001,1.91572877]
[1773165330379,2.04782328,88.036,88.003,1.91572877]
[1773165330701,2.04782328,88.036,88.01,10.62064818]
[1773165330890,2.04782328,88.036,88.003,1.91572877]
[1773165331097,2.04782328,88.036,87.992,1.13646695]
[1773165331098,2.04782328,88.036,87.997,11.36390901]
[1773165331405,2.04782328,88.029,87.995,1.91572877]
[1773165331778,2.04782328,88.019,87.99,0.2]
[1773165332100,2.04782328,88.009,87.99,1e-08]
[1773165332595,11.36260339,88.008,87.99,1e-08]
[1773165333189,2.04782328,88.007,87.99,1e-08]
[1773165334075,11.36260339,88.008,87.951,1.13699673]
[1773165334076,2.04782328,87.999,87.951,1.13699673]
[1773165334285,2.04782328,87.987,87.951,14.42269286]
[1773165334492,2.04782328,87.987,87.951,13.28569613]
[1773165334789,2.04782328,88.007,87.971,1.91572877]
[1773165334980,2.04782328,88.007,87.981,1.91572877]
[1773165335186,2.04782328,88.018,87.981,1.91572877]
[1773165335403,2.04782328,88.058,88.001,1.91572877]
[1773165335578,2.04782328,88.049,88.01,10.62064818]
[1773165336402,39.74653068,88.058,88.0,10.62064818]
[1773165336403,2.04782328,88.038,88.0,10.62064818]
[1773165336577,2.04782328,88.038,87.993,1.91572877]
[1773165336890,2.04782328,88.029,88.0,10.62064818]
[1773165338106,2.04782328,88.038,88.01,10.62064818]
[1773165339300,10.62064818,88.06,88.021,1.91572877]
[1773165339486,2.04782328,88.059,88.021,1.91572877]
[1773165340303,2.04782328,88.049,88.011,11.36221608]
[1773165340510,2.04782328,88.039,88.01,10.62064818]
[1773165340807,2.04782328,88.039,88.011,11.36221608]
[1773165341197,2.04782328,88.039,88.02,10.62064818]
[1773165341396,2.04782328,88.058,88.031,1.91572877]
[1773165341984,2.04782328,88.056,88.03,10.62064818]
[1773165342179,2.04782328,88.056,88.02,10.62064818]
[1773165342907,2.04782328,88.049,88.02,10.62064818]
[1773165343291,2.04782328,88.047,88.02,21.98164689]
[1773165344680,13.40371698,88.06,88.04,10.62064818]
[1773165346117,2.04782328,88.059,88.032,11.35943116]
[1773165346604,2.04782328,88.059,88.03,21.98031261]
[1773165347314,1.90721497,88.057,88.02,10.62064818]
[1773165348091,1.90721497,88.049,88.02,10.62064818]
[1773165350688,1.97750444,88.047,88.01,10.62064818]
[1773165351109,1.97750444,88.047,88.005,11.36299073]
[1773165351110,1.97750444,88.047,88.02,10.62064818]
[1773165353107,1.97750444,88.057,88.031,2.0211006]
[1773165353299,1.97750444,88.057,88.022,2.0211006]
[1773165354197,1.97750444,88.049,88.02,3.96381354]
[1773165355712,3.69383402,88.078,88.0,3.96381354]
[1773165355713,1.97750444,88.065,88.03,3.964086]
[1773165356796,1.97750444,88.065,88.031,2.0211006]
[1773165357000,11.35512002,88.066,88.041,2.0211006]
[1773165357898,1.97750444,88.066,88.041,2.0211006]
[1773165358098,1.97750444,88.066,88.042,13.37931599]
[1773165358598,1.97750444,88.066,88.042,2.0211006]
[1773165359613,13.3309485,88.079,88.051,2.0211006]
[1773165359817,13.33120631,88.077,88.052,11.35692545]
[1773165360019,1.97750444,88.076,88.052,11.35692545]
[1773165360715,1.97750444,88.069,88.03,3.964086]
[1773165361097,1.97750444,88.069,87.988,45.46054396]
[1773165361098,1.97750444,88.059,88.02,3.964086]
[1773165361299,1.97750444,88.059,88.001,1.13635072]
[1773165361300,1.97750444,88.049,88.01,3.964086]
[1773165361499,1.97750444,88.039,88.002,11.3633781]
[1773165361907,3.964086,88.04,88.002,11.3633781]
[1773165361908,1.97750444,88.037,88.002,11.3633781]
[1773165362112,1.97750444,88.037,88.01,3.964086]
[1773165362307,1.97750444,88.037,88.002,11.3633781]
[1773165363822,1.97750444,88.035,88.002,11.3633781]
[1773165364202,1.97750444,88.035,88.0,3.964086]
[1773165364401,1.97750444,88.029,88.0,3.964086]
[1773165364605,1.97750444,88.029,87.993,2.0211006]
[1773165365803,1.97750444,88.027,88.0,3.964086]
[1773165366004,1.97750444,88.027,88.001,2.0211006]
[1773165366506,11.36002181,88.028,88.001,2.0211006]
[1773165367010,13.33752625,88.028,88.001,2.0211006]
[1773165367318,1.97750444,88.027,87.991,2.0211006]
[1773165368122,1.97750444,88.025,87.991,11.36479867]
[1773165368509,1.97750444,88.025,87.991,13.38589927]
[1773165368711,1.97750444,88.025,87.992,2.0211006]
[1773165370316,3.964086,88.03,87.991,11.36479867]
[1773165370317,1.97750444,88.023,87.991,11.36479867]
[1773165371619,3.964086,88.03,87.991,11.36479867]
[1773165371620,1.97750444,88.021,87.991,11.36479867]
[1773165372423,1.97750444,88.028,88.0,3.964086]
[1773165372722,1.97750444,88.028,87.993,2.0211006]
[1773165373623,11.36015086,88.027,87.994,11.3644112]
[1773165373918,1.97750444,88.026,87.995,2.0211006]
[1773165376524,1.97750444,88.026,87.967,1.13678993]
[1773165376525,11.35821539,88.042,88.011,2.0211006]
[1773165376830,8.73821539,88.042,88.011,2.0211006]
[1773165377029,11.35752567,88.048,88.021,2.0211006]
[1773165377326,1.97750444,88.047,88.021,2.0211006]
[1773165377534,1.97750444,88.047,88.013,2.0211006]
[1773165380623,11.35769938,88.046,88.021,1.93426094]
[1773165380831,1.90188884,88.045,88.021,1.93426094]
[1773165382430,1.90188884,88.045,88.015,1.93426094]
[1773165383617,11.35795738,88.044,88.016,11.36157062]
[1773165383831,11.35795738,88.044,88.017,1.93426094]
[1773165384319,13.25984622,88.044,88.017,1.93426094]
[1773165384521,1.90188884,88.043,88.017,1.93426094]
[1773165384819,1.90188884,88.039,88.005,1.93426094]
[1773165385136,1.90188884,88.039,88.011,1.93426094]
[1773165386337,3.964086,88.03,87.99,3.964086]